Cogmind - Beta 15 @@@ ROGUE MODE // 2025.08.25 @ 00:11:34 Player: Mogwok Wargfriend Result: Destroyed by JX-A0X(R) with Subdweller Laser Performance ------------- Evolutions (0) 0 Regions Visited (2) 400 Robots Destroyed (28) 140 Value Destroyed (626) 626 Prototype IDs (11) 220 Alien Tech Used (0) 0 Bonus (0) 0 TOTAL SCORE: 1386 Bonus ------- None Cogmind --------- Core Integrity 0/250 Matter 290/300 Energy 180/180 System Corruption 0% Temperature Cool (6) Movement Rolling (120) Ox1 Location -10/Subcaves Parts ------- > --- POWER (1) -------- Meta Core > --- PROPULSION (2+1) - Spiked Treads Spiked Treads (+) Subdweller Monowheel > --- UTILITY (2) ------ Scrap Shield > --- WEAPON (2+1) ----- Medium Laser Mining Laser > --- INVENTORY (5) ---- Light Ion Engine Subdweller Monowheel Subdweller Machine Gun Slug Cannon Subdweller Shrapnel Launcher Peak State ------------ > --- POWER ------------ Meta Core > --- PROPULSION ------- Spiked Treads Spiked Treads Subdweller Monowheel > --- UTILITY ---------- Scrap Shield > --- WEAPON ----------- Medium Laser Slug Cannon > --- INVENTORY -------- Light Ion Engine Subdweller Monowheel Subdweller Machine Gun Subdweller Shrapnel Launcher Mining Laser [Rating: 28] Favorites ----------- Power Meta Core Engine Ion Engine Power Core Meta Core Propulsion Wheel Treads Light Treads Wheel Wheel Utility Scrap Shield Device Seismic Detector Storage Small Storage Unit Protection Scrap Shield Weapon Medium Laser Energy Gun Medium Laser Ballistic Gun Battle Rifle Ballistic Cannon Slug Cannon Special Weapon Mining Laser Build | -11 -10 -10 ------- Run | Yrd Mat Sub Slots Evolved . | . . . Power . | . . . Propulsion . | . . . Utility . | . . . Weapon . | . . . Parts Attached 23 | 7 . 16 Power 2 | 1 . 1 Engine 1 | 1 . . Core 1 | . . 1 Reactor . | . . . Propulsion 9 | 2 . 7 Treads 3 | 1 . 2 Leg . | . . . Wheel 6 | 1 . 5 Hover . | . . . Flight . | . . . Utility 6 | 2 . 4 Device 1 | 1 . . Storage 1 | 1 . . Processor . | . . . Hackware . | . . . Protection 4 | . . 4 Artifact . | . . . Weapon 6 | 2 . 4 Energy Gun 1 | 1 . . Energy Cannon . | . . . Ballistic Gun 3 | 1 . 2 Ballistic Cannon 1 | . . 1 Launcher . | . . . Special Weapon 1 | . . 1 Impact Weapon . | . . . Slashing Weapon . | . . . Piercing Weapon . | . . . Special Melee Weapon . | . . . Unidentified Prototypes . | . . . Parts Lost 5 | . . 5 Power . | . . . Propulsion 2 | . . 2 Utility 3 | . . 3 Weapon . | . . . Highest Loss Streak 2 | . . 2 To Critical Strikes . | . . . Average Backups 5 | 5 8 5 Power . | . 1 1 Propulsion 1 | 3 3 1 Utility . | . 1 . Weapon 3 | 1 2 3 Tool/Special . | . . . Unused Backups 19 | 2 3 14 Power 1 | . . 1 Propulsion 6 | 2 1 3 Utility 3 | . 1 2 Weapon 9 | . 1 8 Tool/Special . | . . . Average Slot Usage (%) 67 | . 100 66 Engine 2 | . 14 2 Core 8 | . . 9 Treads 7 | . 14 7 Wheel 12 | . 14 12 Device 2 | . 14 1 Storage 3 | . 14 3 Protection 7 | . . 7 Energy Gun 11 | . 14 11 Ballistic Gun 4 | . 14 4 Ballistic Cannon 5 | . . 5 Special Weapon 1 | . . 1 Peak Build Rating 28 | 7 7 28 Average Rating 19 | 6 7 21 On Entrance 4 | . 7 7 Naked Turns . | . . . Heaviest Build 33 | 15 15 33 Greatest Support 40 | 10 10 40 Greatest Overweight (x) 10 | 1 1 10 Average Overweight (x) 1 | . 1 1 Largest Inventory Capacity 8 | 8 8 8 Average Capacity 6 | 7 8 5 Most Carried 8 | 8 8 8 Average Carried 5 | 6 7 5 Final Capacity 8 | 8 8 5 Final Carried 8 | 8 8 5 Class Distribution -------------------- 96% | Mutant 3% | Derelict-Mutant Dominant Class ---------------- Mutant | -10/Materials Mutant | -10/Subcaves Resources | -11 -10 -10 ----------- Run | Yrd Mat Sub Matter Collected 1222 | 335 73 814 Remotely . | . . . Salvage Created 865 | 175 105 585 Parts 63 | 13 8 42 Haulers Intercepted 2 | . 2 . Recyclers Shooed . | . . . Parts Field Recycled . | . . . Retrieved Matter . | . . . Parts Self-Destructed 21 | . . 21 Prevented . | . . . Kills | -11 -10 -10 ------- Run | Yrd Mat Sub Combat Hostiles Destroyed 19 | . . 19 Guns 15 | . . 15 Cannons 4 | . . 4 Classes Destroyed 9 | 3 1 5 Worker 3 | 2 1 . Tunneler 3 | 3 . . Hauler 2 | . 2 . Recycler 1 | 1 . . Swarmer 6 | . . 6 Grunt 1 | . . 1 Sentry 1 | . . 1 Artisan 1 | . . 1 Subdweller 11 | . . 11 Best Kill Streak 4 | 4 2 3 Combat Bots Only 3 | . . 3 Max Kills in Single Turn 1 | 1 1 1 Gunslinging . | . . . Exploded . | . . . Melee . | . . . Uniques/NPCs Destroyed . | . . . Combat | -11 -10 -10 -------- Run | Yrd Mat Sub Hostile Shots Fired 133 | . 10 123 Missed 42 | . 2 40 Hits 91 | . 8 83 Projectile 91 | . 8 83 AOE 1 | . . 1 Critical Strikes 5 | . . 5 Damage Taken 1574 | . 61 1513 Core 265 | . 16 249 Absorbed by Shields . | . . . Core Remaining (%) 100 | 100 . . Volleys Fired 201 | 12 7 182 Largest 2 | 2 2 2 Hottest 150 | 70 70 150 Shots Fired 366 | 24 12 330 Gun 247 | 24 12 211 Cannon 48 | . . 48 Launcher . | . . . Special 71 | . . 71 Kinetic 129 | 12 7 110 Thermal 237 | 12 5 220 Explosive . | . . . Electromagnetic . | . . . Robot Hit Streak 15 | 7 9 15 Robot Miss Streak 3 | 3 3 2 Penetration Max . | . . . Secondary Targets 1 | . . 1 Max Gunslinging Chain 1 | . . 1 Shots Hit Robots 128 | 14 9 105 Core Hits 46 | 7 5 34 Critical Kills 1 | . . 1 Critical Parts Destroyed . | . . . Critical Strikes 7 | 1 . 6 Burn 4 | 1 . 3 Destroy 3 | . . 3 Melee Attacks . | . . . Impact . | . . . Slashing . | . . . Piercing . | . . . Sneak Attacks . | . . . Combat Hostiles . | . . . Follow-up Attacks . | . . . Damage Inflicted 1920 | 178 112 1630 Guns 1445 | 178 112 1155 Cannons 475 | . . 475 Explosions . | . . . Melee . | . . . Ramming . | . . . Kinetic 1135 | 76 61 998 Thermal 785 | 102 51 632 Explosive . | . . . Electromagnetic . | . . . Impact . | . . . Slashing . | . . . Piercing . | . . . Highest Corruption . | . . . Average Corruption . | . . . Corruption Purged . | . . . Corruption Blocked . | . . . Overload Shots . | . . . Overflow Damage . | . . . Projectiles . | . . . Explosions . | . . . Melee . | . . . Knockbacks 3 | . . 3 Impact . | . . . Kinetic 3 | . . 3 Secondary . | . . . Self-Inflicted Damage . | . . . Shots . | . . . Rammed . | . . . Targets Rammed . | . . . Kicked . | . . . Crushed . | . . . Highest Temperature 276 | 63 27 276 Average Temperature 77 | 28 12 143 Received Heat Transfer 1136 | . . 1136 Siege Activations . | . . . Martial Activations . | . . . Shielding Activations . | . . . Robots Disrupted . | . . . Combat Hostiles . | . . . Robots Corrupted . | . . . Combat Hostiles . | . . . Parts Fried . | . . . Impact Corruptions . | . . . Robots Melted . | . . . Combat Hostiles . | . . . Parts Melted 2 | . . 2 Heat Transferred 2627 | 370 148 2109 Parts Sabotaged . | . . . Parts Stolen . | . . . Parts Stripped . | . . . Power Chain Reactions . | . . . Alert | -11 -10 -10 ------- Run | Yrd Mat Sub Maximum Alert Level . | . . . Low Security (%) 100 | 100 100 . Level 1 . | . . . Level 2 . | . . . Level 3 . | . . . Level 4 . | . . . Level 5 . | . . . High Security . | . . . Max Security . | . . . Peak Influence 10 | 10 7 . Initial . | . . . Average 1 | 2 . . Influence Increases 264 | 30 19 215 Destroy 0b10 Robot/C 160 | . . 160 Destroy 0b10 Robot/NC 45 | 30 15 . Destroy Leader 14 | . 4 10 Lose Combat Pursuer 45 | . . 45 Influence Decreases 264 | 30 19 215 Time Decay 226 | 30 19 177 Lost Part 38 | . . 38 Squads Dispatched . | . . . Investigation . | . . . Extermination . | . . . Reinforcement . | . . . Assault . | . . . Garrison . | . . . Intercept . | . . . Searches Triggered . | . . . Construction Impeded . | . . . Haulers Reinforced . | . . . Active Scanning Responses . | . . . Cargo Convoy Interrupts . | . . . Stealth | -11 -10 -10 --------- Run | Yrd Mat Sub Distress Signals 2 | . 2 . Communications Jammed . | . . . Distress Signals . | . . . Times Spotted 26 | . 3 23 Peak Tracking Total 4 | . 3 4 Tactical Retreats 2 | . . 2 Traps | -11 -10 -10 ------- Run | Yrd Mat Sub Traps Triggered . | . . . Indirectly . | . . . Trap Hack Attempts . | . . . Triggered . | . . . Disarmed . | . . . Reprogrammed . | . . . Reused . | . . . Traps Extracted . | . . . Installed . | . . . Triggered . | . . . Machines | -11 -10 -10 ---------- Run | Yrd Mat Sub Machines Disabled 1 | . . 1 Max in Single Turn 1 | . . 1 Machines Repaired . | . . . Machines Dismantled . | . . . Machines Sabotaged . | . . . Overloaded Fab Kills . | . . . Hacking | -11 -10 -10 --------- Run | Yrd Mat Sub Machines Accessed 2 | . . 2 Terminals . | . . . Fabricators . | . . . Repair Stations . | . . . Recycling Units . | . . . Scanalyzers . | . . . Garrison Access . | . . . Total Hacks 5 | . . 5 Successful 5 | . . 5 Failed . | . . . Catastrophic . | . . . Database Lockouts . | . . . Manual 16 | . . 16 Terminals . | . . . Fabricators . | . . . Repair Stations . | . . . Recycling Units . | . . . Scanalyzers . | . . . Garrison Access . | . . . Terminal Hacks 5 | . . 5 Record 4 | . . 4 Proto ID Catalog 1 | . . 1 Fabricator Hacks . | . . . Repair Station Hacks . | . . . Recycling Unit Hacks . | . . . Scanalyzer . | . . . Garrison Access Hacks . | . . . Unauthorized Hacks . | . . . Terminals . | . . . Fabricators . | . . . Repair Stations . | . . . Recycling Units . | . . . Scanalyzers . | . . . Garrison Access . | . . . Data Cores Recovered . | . . . Used . | . . . Hacking Detections . | . . . Full Trace Events . | . . . Feedback Events . | . . . Feedback Blocked . | . . . Robot Schematics Acquired . | . . . Robots Built . | . . . Authchips . | . . . Time . | . . . Total Robot Build Rating . | . . . Part Schematics Acquired . | . . . Parts Built . | . . . Authchips . | . . . Time . | . . . Total Part Build Rating . | . . . Parts Repaired . | . . . Time . | . . . Parts Recycled . | . . . Recycled Matter . | . . . Retrieved Matter . | . . . Retrieved Components . | . . . Parts Scanalyzed . | . . . Part Schematics Acquired . | . . . Parts Damaged . | . . . Bothacking | -11 -10 -10 ------------ Run | Yrd Mat Sub Used RIF Installer . | . . . Robots Hacked . | . . . Non-combat . | . . . Combat . | . . . Robot Hacks Applied . | . . . Relay Couplers Released . | . . . Fabnet Peak Effective % . | . . . Robots Rewired . | . . . Allies Hacked . | . . . Hacks Repelled . | . . . Allies | -11 -10 -10 -------- Run | Yrd Mat Sub Total Allies . | . . . Largest Group . | . . . Highest-Rated Group . | . . . Highest-Rated Ally . | . . . Total Orders . | . . . Ally Attacks . | . . . Total Damage . | . . . Kills . | . . . Allies Corrupted . | . . . Allies Melted . | . . . Intel | -11 -10 -10 ------- Run | Yrd Mat Sub Active Infowar (turns) 641 | 88 154 399 Seismic 641 | 88 154 399 Robot Analysis Total . | . . . Derelict Logs Recovered 1 | . . 1 Drone Launches . | . . . Drone Recoveries . | . . . Exploration | -11 -10 -10 ------------- Run | Yrd Mat Sub Turns Passed 4097 | 158 154 3785 Spaces Moved 2749 | 97 119 2533 Core 76 | 5 . 71 Treads . | . . . Legs . | . . . Wheels 2673 | 92 119 2462 Hover . | . . . Flight . | . . . Fastest Speed 50 | 50 95 80 Average Speed 114 | 92 95 116 Slowest Speed 550 | 95 95 550 Overloaded Moves . | . . . Propulsion Burnouts . | . . . Robots Hopped . | . . . Potential Cave-ins . | . . . Cave-ins Triggered . | . . . Exploration Rate (%) 37 | 3 25 84 Regions Visited 2 Branch Regions 1 Pre-discovered Areas 1 | . . 1 Known Exits Taken . | . . . Unknown Exits Taken 2 | 1 1 . Scrap Searched 11 | . . 11 Spaces Dug 6 | . . 6 Terrain Destroyed 11 | . . 11 Melee . | . . . Projectile 11 | . . 11 AOE . | . . . Terrain Rammed . | . . . Walls Destroyed . | . . . Machines Disabled . | . . . Actions | -11 -10 -10 --------- Run | Yrd Mat Sub Total 3180 | 139 150 2891 Wait 120 | 11 19 90 Move 2747 | 96 118 2533 Hop . | . . . Pick Up 32 | 11 3 18 Fast Attach 16 | 6 . 10 Attach 5 | 1 . 4 Detach . | . . . Swap 23 | . . 23 Drop 25 | 2 3 20 Fire 201 | 12 7 182 Melee . | . . . Ram . | . . . Kick . | . . . Crush . | . . . Escape Stasis . | . . . Rewire . | . . . Trap . | . . . Miscellaneous 11 | . . 11 Route ------- -11/Scrapyard -10/Materials -10/Subcaves (discovered 3 exits: [*Mat x2] / [*Scr]) History --------- Turn | Location | Event 13 | -11/Scrapyard | Discovered new exit (range 15) 159 | -11/Scrapyard | Entered Materials 160 | -10/Materials | Met a group of wandering Federalists 268 | -10/Materials | Discovered new exit (range 12) 312 | -10/Materials | Build established: Mutant 313 | -10/Materials | Entered Subcaves 314 | -10/Subcaves | Continued accompanying wandering Federalists (4) 424 | -10/Subcaves | A swath of the cavern ceiling suddenly collapsed 455 | -10/Subcaves | Lost 3 allies 686 | -10/Subcaves | Disturbed a concealed Subdweller 847 | -10/Subcaves | Visited 4L-MR0's lab 870 | -10/Subcaves | Found Meta Core 871 | -10/Subcaves | Attached Meta Core, gained temporary slots: Propulsion, Utility, Weapon 1077 | -10/Subcaves | Shifting Twisted Machinery released Mak. Light Armor Plating 1078 | -10/Subcaves | Shifting Twisted Machinery released Battle Cannon 1905 | -10/Subcaves | Discovered new exit (range 10) 2154 | -10/Subcaves | Shifting Twisted Machinery released Battle Cannon 2228 | -10/Subcaves | Core integrity fell below 50% 2236 | -10/Subcaves | Core integrity fell below 20% 2773 | -10/Subcaves | Visited Clippyterm 2776 | -10/Subcaves | Learned Factory trap positions 2776 | -10/Subcaves | Learned Factory garrison access intel 3046 | -10/Subcaves | Learned location of Zion (-7) 3110 | -10/Subcaves | Discovered new exit (range 12) 3199 | -10/Subcaves | A swath of the cavern ceiling suddenly collapsed 4094 | -10/Subcaves | Ambushed by Subdweller buried in earth 4098 | -10/Subcaves | Ambushed by Subdweller buried in earth 4098 | -10/Subcaves | Destroyed by JX-A0X(R) with Subdweller Laser Last Messages --------------- 03895_ 3P-HXH(R) destroyed. 03901_ Acquired 18 matter. 03911_ Scrap Shield Fragment affixed to Scrap Shield (+27). 03914_ Searching scrap... 03914_ Found Spk. Treads. 03914_ Found 49 Matter. 03918_ Searching scrap... 03918_ Found Sub. Monowheel. 03918_ Found Battle Rifle. 03918_ Found 49 Matter. 03938_ Sub. Monowheel shoots sparks and powers down. 03945_ Acquired 6 matter. 03946_ Acquired 4 matter. 03954_ Acquired Spk. Treads. 03958_ Dropped Broken Sub. Monowheel. 03959_ Acquired Sub. Monowheel. 03961_ Acquired 10 matter. 04095_ KT-E75(R): "ARGHSUB!" Map ----- +----------------------------------------------------+ | ??????????????????????????????????## ???#### % ## | | ???????????????????????????????????###??## # | | ????????????????????????????????????????# % # | | ????????????????????????????????????????# * # | | ????????????????????????????????????????### ## # | | ?????????????????????????????????????????##]!## # | | ?????????????????????????????????????????# # # | | ?????????????????????????????????????????# # | | ?????????????????????????????????????????## #### | | ?????????????????????????????????????????## ##?? | | ????????????????????????????????????????## "#?? | | ????????????????????????????????????????# ""#?? | | ????????????????????????????????????????# """### | | ???????##???????????????????????????????# " " | | ??????# ##??????????????????????????????# " "" | | ?##### ##?????????????????????????????# " "" | | ## #?????????????????????????????## """"" | | ## #???????????????????????????????## "" # | | #### #???????????????????????????????## " ## # | | ##?? ##??????????????????????????????#" "##?## | | #??# ##########?????????????????????# "##### | | # %##### ### ## ##????????????????????## " # | | #[%= # #???????????????????### # | | % [ ## ### # #######???????####?## # | | #! ########?#### ##RR##?????## ### # | | ### ###???????# @ #?????# # | | #?## #???????# ## # #####????# # | | #?# #???????##?###### ##???## ## ## | | ??## #??????????????# ####?######### ###? | | ??# ###????????????## # #?######## #??? | | ?## #?????????????# ###"[=%"##! ##?? | | ?# ###?????????????# ## ##% ## ##% ### | | ?#### ##?????########## #### ##### # [ # | | ????# ####### # ### #?#######" # % # | | ????## # #?????# ## # | | ????# # [ #?????# " "% ## | | ????## #### # ! ###??## ######? | | ????## #""## | ##### ## #### #?????? | | ??### #%"="# #?? # # #?????? | | # #|["[ %# #? ## < #?????? | | ###="%"## #### # # # #?????? | | # ##"## #??## ######## ## #?????? | | ###### ### #???##########??????######## ##?????? | | ????# # ###??????????????????????????###??????? | | ????#######??????????????????????????????????????? | | ?????????????????????????????????????????????????? | | ?????????????????????????????????????????????????? | | ?????????????????????????????????????????????????? | | ?????????????????????????????????????????????????? | | ?????????????????????????????????????????????????? | +----------------------------------------------------+ Best States ------------- Heat Dissipation 25 Energy Generation 17 Energy Capacity 250 Matter Stores 300 Matter Capacity 300 Sight Range 16 Terrain Scan Density 10 Armor Coverage 800 Evasion (%) 41 Item Schematics ----------------- None Robot Schematics ------------------ None Fabricated ------------ Nothing Repaired ---------- Nothing Alien Tech Used ----------------- None Achievements -------------- None Challenges ------------ None Game ------ Seed NullBottomlessBotcube Manual? 0 Play Time 00:33:54 Cumulative 345.2 hours Start 2025.08.24 @ 18:48:12 End 2025.08.25 @ 00:11:34 Sessions 3 Manual Loads 0 Difficulty Rogue Special Mode None Game No. 291 Rogue 291 Adventurer 0 Explorer 0 Win Type - Total 2 Types 2/0/0/0/0/0/0/0/0/0 Lore% 75 Gallery% 68 Achievement% 53 Wizard Run 0 Options --------- Layout 2 ASCII 1 Keyboard 1 Movement Numpad Keybinds 0 Fullscreen 2 Font 32/TamsynBold Map View 50x44 Zoom Use 0% Tactical HUD 1 Map Filters NONE Filters NONE Steam 1 RUN: de630c8b-8c6a-49e6-8a54-11559028e5d7